[Event "*** Titled Tuesday Blitz"]
[Site "Chess.com"]
[Date "2021.02.16"]
[Round "3"]
[White "DarZay"]
[Black "Walter_White_Poland"]
[Result "1/2-1/2"]
[WhiteElo "2159"]
[BlackElo "2350"]
[TimeControl "180+1"]
[EndTime "10:30:58 PST"]
[Termination "Game drawn by repetition"]

1. e4 {[%clk 0:03:00.9]} 1... e5 {[%clk 0:02:59.9]} 2. Nf3 {[%clk 0:03:00.5]}
2... Nc6 {[%clk 0:02:59.9]} 3. Bc4 {[%clk 0:02:56.1]} 3... Nf6 {[%clk
0:02:59.2]} 4. d3 {[%clk 0:02:53.8]} 4... d5 {[%clk 0:02:59.1]} 5. exd5 {[%clk
0:02:50.4]} 5... Nxd5 {[%clk 0:03:00]} 6. Nc3 {[%clk 0:02:42.6]} 6... Nb6 {[%clk
0:02:56.2]} 7. Bb3 {[%clk 0:02:42.4]} 7... Bg4 {[%clk 0:02:51.9]} 8. h3 {[%clk
0:02:40.6]} 8... Bh5 {[%clk 0:02:51.5]} 9. Be3 {[%clk 0:02:35.9]} 9... Bb4
{[%clk 0:01:53.9]} 10. Qd2 {[%clk 0:02:24.7]} 10... Bxf3 {[%clk 0:01:47]} 11.
gxf3 {[%clk 0:02:24]} 11... Qd7 {[%clk 0:01:43.9]} 12. a3 {[%clk 0:02:23.4]}
12... Bxc3 {[%clk 0:01:34.2]} 13. Qxc3 {[%clk 0:02:22]} 13... O-O-O {[%clk
0:01:34.2]} 14. O-O-O {[%clk 0:02:20.3]} 14... Nd4 {[%clk 0:01:33.5]} 15. Bxd4
{[%clk 0:02:20]} 15... exd4 {[%clk 0:01:32.6]} 16. Qc5 {[%clk 0:02:16.5]} 16...
Rhe8 {[%clk 0:01:25.4]} 17. Rhe1 {[%clk 0:02:15.8]} 17... f6 {[%clk 0:01:17.1]}
18. Re4 {[%clk 0:02:11.4]} 18... Qxh3 {[%clk 0:01:03.6]} 19. Rde1 {[%clk
0:01:56.4]} 19... Rxe4 {[%clk 0:01:02]} 20. Rxe4 {[%clk 0:01:55.3]} 20... Qh1+
{[%clk 0:00:54]} 21. Kd2 {[%clk 0:01:54.7]} 21... Qxf3 {[%clk 0:00:47.2]} 22.
Qe7 {[%clk 0:01:33.1]} 22... Qxf2+ {[%clk 0:00:45.6]} 23. Re2 {[%clk 0:01:32]}
23... Qf4+ {[%clk 0:00:45.1]} 24. Kd1 {[%clk 0:01:31.8]} 24... Qd6 {[%clk
0:00:31.8]} 25. Qxg7 {[%clk 0:01:26.8]} 25... a5 {[%clk 0:00:24]} 26. Re6 {[%clk
0:01:19.4]} 26... Qf4 {[%clk 0:00:21.9]} 27. Rxf6 {[%clk 0:01:16.7]} 27... Qe3
{[%clk 0:00:19.1]} 28. Rf7 {[%clk 0:01:04.7]} 28... Kb8 {[%clk 0:00:17.3]} 29.
Qf6 {[%clk 0:00:53.2]} 29... Re8 {[%clk 0:00:15.7]} 30. Qf1 {[%clk 0:00:50.3]}
30... c6 {[%clk 0:00:13.1]} 31. Rf8 {[%clk 0:00:48.2]} 31... Rxf8 {[%clk
0:00:12.7]} 32. Qxf8+ {[%clk 0:00:47.9]} 32... Ka7 {[%clk 0:00:13.6]} 33. Qc5
{[%clk 0:00:48.2]} 33... Qf3+ {[%clk 0:00:12.6]} 34. Kd2 {[%clk 0:00:47.1]}
34... Qf4+ {[%clk 0:00:13]} 35. Kd1 {[%clk 0:00:46.2]} 35... Ka6 {[%clk
0:00:13.3]} 36. Bc4+ {[%clk 0:00:36.4]} 36... Nxc4 {[%clk 0:00:12.9]} 37. Qxc4+
{[%clk 0:00:36.8]} 37... Kb6 {[%clk 0:00:12.6]} 38. b4 {[%clk 0:00:35.3]} 38...
axb4 {[%clk 0:00:12.1]} 39. Qxb4+ {[%clk 0:00:25.9]} 39... Ka6 {[%clk
0:00:12.1]} 40. Qa4+ {[%clk 0:00:25.7]} 40... Kb6 {[%clk 0:00:11.8]} 41. Qb4+
{[%clk 0:00:26]} 41... Kc7 {[%clk 0:00:12]} 42. Qe7+ {[%clk 0:00:25.6]} 42...
Kc8 {[%clk 0:00:11.6]} 43. Qe8+ {[%clk 0:00:25.1]} 43... Kc7 {[%clk 0:00:12]}
44. Qe7+ {[%clk 0:00:25.3]} 44... Kb6 {[%clk 0:00:12.1]} 45. Qb4+ {[%clk
0:00:25.4]} 1/2-1/2

[Event "*** Titled Tuesday Blitz"]
[Site "Chess.com"]
[Date "2021.02.16"]
[Round "3"]
[White "GOGIEFF"]
[Black "swisspower96"]
[Result "1-0"]
[WhiteElo "2895"]
[BlackElo "2630"]
[TimeControl "180+1"]
[EndTime "10:30:59 PST"]
[Termination "GOGIEFF won by resignation"]

1. d4 {[%clk 0:03:00.9]} 1... Nf6 {[%clk 0:02:57.8]} 2. c4 {[%clk 0:03:00.8]}
2... e6 {[%clk 0:02:56.2]} 3. Nc3 {[%clk 0:03:00.1]} 3... Bb4 {[%clk 0:02:56.4]}
4. Nf3 {[%clk 0:03:00.2]} 4... d5 {[%clk 0:02:55.5]} 5. Qa4+ {[%clk 0:02:58.8]}
5... Nc6 {[%clk 0:02:55.1]} 6. e3 {[%clk 0:02:59]} 6... O-O {[%clk 0:02:47.3]}
7. Bd2 {[%clk 0:02:59]} 7... Re8 {[%clk 0:02:11.4]} 8. Rd1 {[%clk 0:02:49]} 8...
a6 {[%clk 0:01:56.2]} 9. a3 {[%clk 0:02:42.8]} 9... Bd6 {[%clk 0:01:51.9]} 10.
h3 {[%clk 0:02:30.8]} 10... h6 {[%clk 0:01:50.8]} 11. b4 {[%clk 0:02:09.2]}
11... Bd7 {[%clk 0:01:18.9]} 12. Qb3 {[%clk 0:02:08.6]} 12... dxc4 {[%clk
0:01:14.5]} 13. Bxc4 {[%clk 0:02:08.8]} 13... b5 {[%clk 0:01:14.8]} 14. Bd3
{[%clk 0:01:36.2]} 14... e5 {[%clk 0:01:14.7]} 15. d5 {[%clk 0:01:36.7]} 15...
e4 {[%clk 0:00:57.6]} 16. dxc6 {[%clk 0:01:32.9]} 16... Be6 {[%clk 0:00:57]} 17.
Qb1 {[%clk 0:01:26.2]} 17... exd3 {[%clk 0:00:50.6]} 18. Nd4 {[%clk 0:01:22.2]}
18... Bc4 {[%clk 0:00:46.4]} 19. O-O {[%clk 0:01:22.1]} 19... Qe7 {[%clk
0:00:42]} 20. Nf5 {[%clk 0:01:17.1]} 20... Qe5 {[%clk 0:00:37.7]} 21. Nxd6
{[%clk 0:01:17.2]} 21... Qxd6 {[%clk 0:00:38.6]} 22. f3 {[%clk 0:01:13.9]} 22...
Nh5 {[%clk 0:00:30.4]} 23. e4 {[%clk 0:01:12]} 23... Ng3 {[%clk 0:00:27.4]} 24.
Rfe1 {[%clk 0:01:09.4]} 24... Qxc6 {[%clk 0:00:24.4]} 25. Be3 {[%clk 0:01:09.1]}
25... f5 {[%clk 0:00:20.9]} 26. exf5 {[%clk 0:00:59.8]} 26... Nxf5 {[%clk
0:00:20.6]} 27. Bf2 {[%clk 0:00:58.9]} 27... Rad8 {[%clk 0:00:20.4]} 28. Ne4
{[%clk 0:00:55.5]} 28... Nd4 {[%clk 0:00:19.3]} 29. Qb2 {[%clk 0:00:50.8]} 29...
Ne2+ {[%clk 0:00:18.6]} 30. Kh1 {[%clk 0:00:51.4]} 30... Qg6 {[%clk 0:00:18.3]}
31. Bh4 {[%clk 0:00:49.6]} 31... Rd5 {[%clk 0:00:14.3]} 32. Bf2 {[%clk
0:00:42.4]} 32... Rh5 {[%clk 0:00:14.1]} 33. a4 {[%clk 0:00:36.7]} 33... Nf4
{[%clk 0:00:14.1]} 34. Bg1 {[%clk 0:00:30]} 34... Be6 {[%clk 0:00:10.4]} 35. Bh2
{[%clk 0:00:24.7]} 35... Bxh3 {[%clk 0:00:04.1]} 36. gxh3 {[%clk 0:00:22.3]}
36... Rxh3 {[%clk 0:00:04.6]} 37. Rg1 {[%clk 0:00:21.5]} 37... Qh5 {[%clk
0:00:05.1]} 38. Nf6+ {[%clk 0:00:20.7]} 1-0

[Event "*** Titled Tuesday Blitz"]
[Site "Chess.com"]
[Date "2021.02.16"]
[Round "3"]
[White "fabianvivasz"]
[Black "AliKa2810"]
[Result "0-1"]
[WhiteElo "2364"]
[BlackElo "2544"]
[TimeControl "180+1"]
[EndTime "10:31:00 PST"]
[Termination "AliKa2810 won on time"]

1. e4 {[%clk 0:03:00.9]} 1... c6 {[%clk 0:02:59]} 2. Nf3 {[%clk 0:02:59.7]} 2...
d5 {[%clk 0:02:59.9]} 3. Nc3 {[%clk 0:03:00.1]} 3... Bg4 {[%clk 0:02:59.5]} 4.
h3 {[%clk 0:03:00]} 4... Bxf3 {[%clk 0:02:59.8]} 5. Qxf3 {[%clk 0:03:00.9]} 5...
Nf6 {[%clk 0:02:59.9]} 6. d4 {[%clk 0:02:53.4]} 6... dxe4 {[%clk 0:02:56.4]} 7.
Nxe4 {[%clk 0:02:37.1]} 7... Qxd4 {[%clk 0:02:55.4]} 8. Bd3 {[%clk 0:02:37.2]}
8... Nxe4 {[%clk 0:02:51.1]} 9. Bxe4 {[%clk 0:02:37]} 9... Nd7 {[%clk
0:02:49.6]} 10. Bd2 {[%clk 0:02:19.7]} 10... Qxb2 {[%clk 0:02:26.6]} 11. O-O
{[%clk 0:02:09.1]} 11... Qf6 {[%clk 0:02:18.6]} 12. Qg3 {[%clk 0:01:43.8]} 12...
e5 {[%clk 0:01:35.4]} 13. f4 {[%clk 0:00:49.8]} 13... Bc5+ {[%clk 0:01:31.6]}
14. Kh1 {[%clk 0:00:45.6]} 14... O-O {[%clk 0:01:30.5]} 15. Qd3 {[%clk
0:00:39.9]} 15... Rad8 {[%clk 0:01:24.3]} 16. Bxh7+ {[%clk 0:00:39.8]} 16... Kh8
{[%clk 0:01:24.8]} 17. Be4 {[%clk 0:00:35.7]} 17... Bd4 {[%clk 0:01:14.4]} 18.
Qe2 {[%clk 0:00:24.2]} 18... Bxa1 {[%clk 0:00:54.5]} 19. fxe5 {[%clk 0:00:15.9]}
19... Qxe5 {[%clk 0:00:54.8]} 20. Rf5 {[%clk 0:00:15.7]} 20... Qxf5 {[%clk
0:00:20.5]} 21. Bxf5 {[%clk 0:00:15.2]} 21... Nf6 {[%clk 0:00:21.2]} 22. c3
{[%clk 0:00:11.2]} 22... Rfe8 {[%clk 0:00:20.4]} 23. Qf2 {[%clk 0:00:09.6]}
23... Ne4 {[%clk 0:00:16.9]} 24. Qh4+ {[%clk 0:00:09]} 24... Kg8 {[%clk
0:00:16.9]} 25. Qh7+ {[%clk 0:00:05.8]} 25... Kf8 {[%clk 0:00:17.3]} 26. Qh8+
{[%clk 0:00:05.5]} 26... Ke7 {[%clk 0:00:17.8]} 27. Qh4+ {[%clk 0:00:05.7]}
27... Nf6 {[%clk 0:00:16.1]} 28. Bg5 {[%clk 0:00:05.4]} 28... Bxc3 {[%clk
0:00:15.5]} 29. Kh2 {[%clk 0:00:05.4]} 29... Be5+ {[%clk 0:00:15.3]} 30. g3
{[%clk 0:00:05]} 30... Rd4 {[%clk 0:00:13.6]} 31. Qh5 {[%clk 0:00:04]} 31...
Rd2+ {[%clk 0:00:12.5]} 32. Kg1 {[%clk 0:00:02.9]} 32... Red8 {[%clk 0:00:11.2]}
33. Qf3 {[%clk 0:00:02.6]} 33... Rd1+ {[%clk 0:00:11]} 34. Kf2 {[%clk
0:00:02.9]} 34... Ra1 {[%clk 0:00:09.1]} 35. Qe2 {[%clk 0:00:02.8]} 35... Rd5
{[%clk 0:00:08]} 36. h4 {[%clk 0:00:02.1]} 36... Kf8 {[%clk 0:00:07.9]} 0-1

[Event "*** Titled Tuesday Blitz"]
[Site "Chess.com"]
[Date "2021.02.16"]
[Round "3"]
[White "Sankalp_Gupta2003"]
[Black "ural58"]
[Result "1/2-1/2"]
[WhiteElo "2715"]
[BlackElo "2516"]
[TimeControl "180+1"]
[EndTime "10:31:05 PST"]
[Termination "Game drawn by repetition"]

1. d4 {[%clk 0:03:00.9]} 1... d5 {[%clk 0:02:58.8]} 2. Bf4 {[%clk 0:02:59.4]}
2... e6 {[%clk 0:02:58.7]} 3. e3 {[%clk 0:02:59.5]} 3... Nf6 {[%clk 0:02:59.2]}
4. Nf3 {[%clk 0:02:59.4]} 4... c5 {[%clk 0:02:59.8]} 5. Nbd2 {[%clk 0:02:58.9]}
5... Qb6 {[%clk 0:02:59.6]} 6. dxc5 {[%clk 0:02:54]} 6... Bxc5 {[%clk
0:02:57.3]} 7. c4 {[%clk 0:02:37.4]} 7... O-O {[%clk 0:02:41.3]} 8. Qb3 {[%clk
0:02:35.1]} 8... Nc6 {[%clk 0:02:35.9]} 9. Be2 {[%clk 0:02:30.4]} 9... Qxb3
{[%clk 0:02:28]} 10. axb3 {[%clk 0:02:28.7]} 10... Bd7 {[%clk 0:02:12.1]} 11.
O-O {[%clk 0:02:26.6]} 11... Nh5 {[%clk 0:02:01.5]} 12. Bg5 {[%clk 0:02:18]}
12... h6 {[%clk 0:02:01]} 13. Bh4 {[%clk 0:02:16.8]} 13... g5 {[%clk 0:01:57.3]}
14. Bg3 {[%clk 0:02:16.9]} 14... Nxg3 {[%clk 0:01:56.7]} 15. hxg3 {[%clk
0:02:17.8]} 15... Nb4 {[%clk 0:01:52.6]} 16. Rfc1 {[%clk 0:02:17]} 16... Bd6
{[%clk 0:01:42.7]} 17. e4 {[%clk 0:02:08]} 17... Rfd8 {[%clk 0:01:32.2]} 18.
cxd5 {[%clk 0:02:04.1]} 18... exd5 {[%clk 0:01:32.1]} 19. e5 {[%clk 0:02:04]}
19... Bf8 {[%clk 0:01:30.4]} 20. Nd4 {[%clk 0:01:58.3]} 20... Nc6 {[%clk
0:01:25.9]} 21. N2f3 {[%clk 0:01:57.4]} 21... Bg7 {[%clk 0:01:17.8]} 22. Nxc6
{[%clk 0:01:55.1]} 22... Bxc6 {[%clk 0:01:14.2]} 23. Bd3 {[%clk 0:01:52.6]}
23... d4 {[%clk 0:01:09.4]} 24. Re1 {[%clk 0:01:52.1]} 24... a6 {[%clk
0:01:07.9]} 25. Nd2 {[%clk 0:01:51.5]} 25... Bd5 {[%clk 0:01:04.7]} 26. Nc4
{[%clk 0:01:44.8]} 26... Rac8 {[%clk 0:00:52.9]} 27. Nd6 {[%clk 0:01:36.6]}
27... Rc7 {[%clk 0:00:50.4]} 28. f4 {[%clk 0:01:33.6]} 28... f6 {[%clk
0:00:41.8]} 29. Nf5 {[%clk 0:01:31.1]} 29... fxe5 {[%clk 0:00:38.1]} 30. Nxg7
{[%clk 0:01:31.1]} 30... Kxg7 {[%clk 0:00:37.7]} 31. Rxe5 {[%clk 0:01:31.4]}
31... gxf4 {[%clk 0:00:31.5]} 32. gxf4 {[%clk 0:01:32.3]} 32... Bxb3 {[%clk
0:00:31.3]} 33. Rae1 {[%clk 0:01:21.1]} 33... Rdd7 {[%clk 0:00:18.9]} 34. Bf5
{[%clk 0:01:17.7]} 34... Rf7 {[%clk 0:00:18.3]} 35. g3 {[%clk 0:01:17]} 35...
Bc4 {[%clk 0:00:17.1]} 36. Kf2 {[%clk 0:01:14.4]} 36... d3 {[%clk 0:00:17.3]}
37. Ke3 {[%clk 0:01:14.1]} 37... Rce7 {[%clk 0:00:15.6]} 38. Bxd3 {[%clk
0:01:01.7]} 38... Rxe5+ {[%clk 0:00:14.4]} 39. fxe5 {[%clk 0:01:02.6]} 39...
Bxd3 {[%clk 0:00:14.7]} 40. Kxd3 {[%clk 0:01:03.5]} 40... Rf3+ {[%clk
0:00:14.9]} 41. Kd4 {[%clk 0:00:53.6]} 41... Rxg3 {[%clk 0:00:15]} 42. Kd5
{[%clk 0:00:49.5]} 42... Kf7 {[%clk 0:00:13.6]} 43. Rh1 {[%clk 0:00:47.8]} 43...
Rg6 {[%clk 0:00:12.6]} 44. Rc1 {[%clk 0:00:48]} 44... Rb6 {[%clk 0:00:11.9]} 45.
Rc7+ {[%clk 0:00:46.9]} 45... Ke8 {[%clk 0:00:12.5]} 46. e6 {[%clk 0:00:35.8]}
46... Rxb2 {[%clk 0:00:10.7]} 47. Rc8+ {[%clk 0:00:36.2]} 47... Ke7 {[%clk
0:00:10.6]} 48. Rc7+ {[%clk 0:00:36.8]} 48... Ke8 {[%clk 0:00:11.1]} 49. Rc8+
{[%clk 0:00:31.9]} 49... Ke7 {[%clk 0:00:11.4]} 50. Rc7+ {[%clk 0:00:32.5]}
50... Ke8 {[%clk 0:00:11.8]} 1/2-1/2

[Event "*** Titled Tuesday Blitz"]
[Site "Chess.com"]
[Date "2021.02.16"]
[Round "3"]
[White "Beca95"]
[Black "federicosellitti"]
[Result "1-0"]
[WhiteElo "2905"]
[BlackElo "2465"]
[TimeControl "180+1"]
[EndTime "10:31:05 PST"]
[Termination "Beca95 won by checkmate"]

1. d4 {[%clk 0:03:00.9]} 1... d5 {[%clk 0:02:59.9]} 2. c4 {[%clk 0:03:00.7]}
2... Nc6 {[%clk 0:03:00.4]} 3. Nc3 {[%clk 0:02:59.2]} 3... dxc4 {[%clk
0:02:59.1]} 4. d5 {[%clk 0:02:59.4]} 4... Na5 {[%clk 0:02:59.2]} 5. e4 {[%clk
0:02:46.8]} 5... c6 {[%clk 0:02:49.6]} 6. Nf3 {[%clk 0:02:28.6]} 6... Nf6 {[%clk
0:02:46.9]} 7. Be2 {[%clk 0:01:50.4]} 7... e6 {[%clk 0:02:26.2]} 8. d6 {[%clk
0:01:48.9]} 8... e5 {[%clk 0:01:35.6]} 9. Nxe5 {[%clk 0:01:48.6]} 9... Bxd6
{[%clk 0:01:35]} 10. Nxc4 {[%clk 0:01:48.7]} 10... Nxc4 {[%clk 0:01:33.5]} 11.
Bxc4 {[%clk 0:01:49.6]} 11... O-O {[%clk 0:01:32.8]} 12. O-O {[%clk 0:01:48]}
12... Qc7 {[%clk 0:01:29.9]} 13. h3 {[%clk 0:01:47.6]} 13... a6 {[%clk
0:01:22.3]} 14. Qf3 {[%clk 0:01:46]} 14... b5 {[%clk 0:01:19]} 15. Bb3 {[%clk
0:01:46.1]} 15... c5 {[%clk 0:01:15.2]} 16. Nd5 {[%clk 0:01:43.5]} 16... Nxd5
{[%clk 0:01:11.6]} 17. Bxd5 {[%clk 0:01:44.4]} 17... Bb7 {[%clk 0:01:08.1]} 18.
Be3 {[%clk 0:01:36.2]} 18... Rac8 {[%clk 0:00:50.2]} 19. Rac1 {[%clk 0:01:33.7]}
19... c4 {[%clk 0:00:42.8]} 20. Rfd1 {[%clk 0:01:31.8]} 20... Bh2+ {[%clk
0:00:40.1]} 21. Kf1 {[%clk 0:01:30.5]} 21... Be5 {[%clk 0:00:41]} 22. Rc2 {[%clk
0:01:24.9]} 22... Bxd5 {[%clk 0:00:36.7]} 23. Rxd5 {[%clk 0:01:23.8]} 23... Rfd8
{[%clk 0:00:35.7]} 24. g3 {[%clk 0:01:12.9]} 24... b4 {[%clk 0:00:32.1]} 25. Kg2
{[%clk 0:01:06.3]} 25... a5 {[%clk 0:00:24.2]} 26. Rc5 {[%clk 0:00:57.7]} 26...
Qxc5 {[%clk 0:00:18.8]} 27. Bxc5 {[%clk 0:00:58.6]} 27... Rxc5 {[%clk
0:00:19.7]} 28. Qe2 {[%clk 0:00:55.4]} 28... Rdc8 {[%clk 0:00:19.6]} 29. f4
{[%clk 0:00:54.3]} 29... Bf6 {[%clk 0:00:14.9]} 30. e5 {[%clk 0:00:54.2]} 30...
Be7 {[%clk 0:00:15.5]} 31. Qe4 {[%clk 0:00:49.6]} 31... g6 {[%clk 0:00:14.3]}
32. h4 {[%clk 0:00:47.3]} 32... a4 {[%clk 0:00:13.8]} 33. h5 {[%clk 0:00:46.5]}
33... c3 {[%clk 0:00:12.3]} 34. bxc3 {[%clk 0:00:46.1]} 34... Rxc3 {[%clk
0:00:11.9]} 35. Re2 {[%clk 0:00:41.8]} 35... b3 {[%clk 0:00:11.3]} 36. axb3
{[%clk 0:00:42.7]} 36... axb3 {[%clk 0:00:12.2]} 37. Qb7 {[%clk 0:00:42.4]}
37... R8c7 {[%clk 0:00:11]} 38. Qb5 {[%clk 0:00:37.2]} 38... Rc2 {[%clk
0:00:08.6]} 39. Kh3 {[%clk 0:00:34.6]} 39... Rxe2 {[%clk 0:00:08.5]} 40. Qxe2
{[%clk 0:00:35]} 40... Ba3 {[%clk 0:00:08.3]} 41. Qb5 {[%clk 0:00:33.2]} 41...
b2 {[%clk 0:00:07]} 42. h6 {[%clk 0:00:23.9]} 42... Rc8 {[%clk 0:00:06.9]} 43.
e6 {[%clk 0:00:22.8]} 43... fxe6 {[%clk 0:00:06.8]} 44. Qd7 {[%clk 0:00:22.8]}
44... Rf8 {[%clk 0:00:04]} 45. Qg7# {[%clk 0:00:22.3]} 1-0

[Event "*** Titled Tuesday Blitz"]
[Site "Chess.com"]
[Date "2021.02.16"]
[Round "3"]
[White "Grimlock_Glasgow"]
[Black "rachidhuilda"]
[Result "1-0"]
[WhiteElo "2459"]
[BlackElo "2268"]
[TimeControl "180+1"]
[EndTime "10:31:06 PST"]
[Termination "Grimlock_Glasgow won on time"]

1. e4 {[%clk 0:03:00.9]} 1... d5 {[%clk 0:02:52.2]} 2. exd5 {[%clk 0:02:58.1]}
2... Qxd5 {[%clk 0:02:47.1]} 3. Nf3 {[%clk 0:02:56.3]} 3... Bg4 {[%clk
0:02:46.6]} 4. Be2 {[%clk 0:02:56.2]} 4... Nc6 {[%clk 0:02:46.4]} 5. d4 {[%clk
0:02:55.7]} 5... O-O-O {[%clk 0:02:43.7]} 6. Be3 {[%clk 0:02:55.3]} 6... e5
{[%clk 0:02:42.5]} 7. c4 {[%clk 0:02:55]} 7... Qa5+ {[%clk 0:02:42.8]} 8. Bd2
{[%clk 0:02:53.6]} 8... Bb4 {[%clk 0:02:41.8]} 9. d5 {[%clk 0:02:53.5]} 9...
Bxf3 {[%clk 0:02:39.9]} 10. Bxf3 {[%clk 0:02:54.4]} 10... Nd4 {[%clk 0:02:39.9]}
11. Nc3 {[%clk 0:01:48]} 11... Qa6 {[%clk 0:02:32.5]} 12. b3 {[%clk 0:01:44]}
12... Qa5 {[%clk 0:02:31.3]} 13. Rc1 {[%clk 0:01:33.9]} 13... Ba3 {[%clk
0:01:57.2]} 14. Nb5 {[%clk 0:01:27.1]} 14... Bb4 {[%clk 0:01:32.6]} 15. Bg4+
{[%clk 0:01:19.4]} 15... Kb8 {[%clk 0:01:19.4]} 16. Nxd4 {[%clk 0:00:57.4]}
16... Bxd2+ {[%clk 0:01:19]} 17. Qxd2 {[%clk 0:00:56.8]} 17... Qxd2+ {[%clk
0:01:18.7]} 18. Kxd2 {[%clk 0:00:57.7]} 18... exd4 {[%clk 0:01:17.6]} 19. Rhe1
{[%clk 0:00:55]} 19... c5 {[%clk 0:00:54]} 20. dxc6 {[%clk 0:00:52.5]} 20...
bxc6 {[%clk 0:00:52]} 21. c5 {[%clk 0:00:50]} 21... Nf6 {[%clk 0:00:23.2]} 22.
Bf3 {[%clk 0:00:49.2]} 22... Kc7 {[%clk 0:00:22.9]} 23. Rc4 {[%clk 0:00:45.6]}
23... Rd7 {[%clk 0:00:18.7]} 24. Ra4 {[%clk 0:00:36]} 24... Kb7 {[%clk
0:00:17.4]} 25. Rc1 {[%clk 0:00:31.5]} 25... Re8 {[%clk 0:00:15.4]} 26. Rcc4
{[%clk 0:00:30.6]} 26... Ne4+ {[%clk 0:00:12.5]} 27. Bxe4 {[%clk 0:00:22.3]}
27... Rxe4 {[%clk 0:00:12.1]} 28. f3 {[%clk 0:00:19.8]} 28... Rh4 {[%clk
0:00:10]} 29. h3 {[%clk 0:00:17.2]} 29... f5 {[%clk 0:00:08.3]} 30. Kd3 {[%clk
0:00:17]} 30... Rh6 {[%clk 0:00:05.4]} 31. Rxd4 {[%clk 0:00:16.7]} 31... Rxd4+
{[%clk 0:00:04.6]} 32. Rxd4 {[%clk 0:00:17.6]} 32... Kc7 {[%clk 0:00:05.1]} 33.
Ra4 {[%clk 0:00:12.4]} 33... Kb7 {[%clk 0:00:05.2]} 34. Rf4 {[%clk 0:00:11.1]}
34... g6 {[%clk 0:00:01.5]} 35. h4 {[%clk 0:00:11.1]} 1-0

[Event "*** Titled Tuesday Blitz"]
[Site "Chess.com"]
[Date "2021.02.16"]
[Round "3"]
[White "politeplayer"]
[Black "PowerThinking2650"]
[Result "1-0"]
[WhiteElo "2218"]
[BlackElo "2416"]
[TimeControl "180+1"]
[EndTime "10:31:07 PST"]
[Termination "politeplayer won by resignation"]

1. f4 {[%clk 0:03:00.9]} 1... e5 {[%clk 0:02:58.2]} 2. e4 {[%clk 0:02:59.7]}
2... Bc5 {[%clk 0:02:56.9]} 3. Nf3 {[%clk 0:02:59.2]} 3... d6 {[%clk 0:02:56.1]}
4. Bc4 {[%clk 0:02:58.6]} 4... Nc6 {[%clk 0:02:54.1]} 5. d3 {[%clk 0:02:58.4]}
5... Nf6 {[%clk 0:02:54.1]} 6. Nc3 {[%clk 0:02:55.2]} 6... Bg4 {[%clk
0:02:53.5]} 7. Na4 {[%clk 0:02:45.4]} 7... Bb6 {[%clk 0:02:52.6]} 8. Nxb6 {[%clk
0:02:43]} 8... axb6 {[%clk 0:02:53.5]} 9. h3 {[%clk 0:02:37]} 9... Bxf3 {[%clk
0:02:49.7]} 10. Qxf3 {[%clk 0:02:36.6]} 10... Qe7 {[%clk 0:02:49.8]} 11. Bb5
{[%clk 0:02:00]} 11... O-O-O {[%clk 0:02:47.2]} 12. Bxc6 {[%clk 0:01:56.7]}
12... bxc6 {[%clk 0:02:48.1]} 13. O-O {[%clk 0:01:47.5]} 13... h6 {[%clk
0:02:25.6]} 14. a4 {[%clk 0:01:45.2]} 14... Kb7 {[%clk 0:02:25.3]} 15. a5 {[%clk
0:01:44.2]} 15... b5 {[%clk 0:02:24.6]} 16. a6+ {[%clk 0:01:43.7]} 16... Ka8
{[%clk 0:02:22.1]} 17. fxe5 {[%clk 0:01:37.5]} 17... dxe5 {[%clk 0:02:09.8]} 18.
Be3 {[%clk 0:01:31.5]} 18... Rhf8 {[%clk 0:01:54.7]} 19. b4 {[%clk 0:01:30.1]}
19... Nd7 {[%clk 0:01:53.2]} 20. d4 {[%clk 0:01:16.9]} 20... exd4 {[%clk
0:01:48.7]} 21. Bxd4 {[%clk 0:01:16.6]} 21... Ne5 {[%clk 0:01:48.9]} 22. Qc3
{[%clk 0:01:04.4]} 22... Rxd4 {[%clk 0:01:34.6]} 23. Qxd4 {[%clk 0:01:01.5]}
23... Rd8 {[%clk 0:01:35.2]} 24. Qc3 {[%clk 0:00:57.6]} 24... f6 {[%clk
0:01:30.5]} 25. Rad1 {[%clk 0:00:53.3]} 25... Rxd1 {[%clk 0:01:25.1]} 26. Rxd1
{[%clk 0:00:52.1]} 26... Nc4 {[%clk 0:01:25.9]} 27. Qd4 {[%clk 0:00:44.6]} 27...
Nd6 {[%clk 0:00:54.3]} 28. Re1 {[%clk 0:00:34.6]} 28... Nc4 {[%clk 0:00:50.4]}
29. Rd1 {[%clk 0:00:26.3]} 29... Nd6 {[%clk 0:00:49.9]} 30. Kh1 {[%clk
0:00:22.9]} 30... Qxe4 {[%clk 0:00:38.5]} 31. Qxe4 {[%clk 0:00:20.6]} 31... Nxe4
{[%clk 0:00:39.4]} 32. Rd7 {[%clk 0:00:19]} 32... Ka7 {[%clk 0:00:36.1]} 33.
Rxc7+ {[%clk 0:00:17.1]} 33... Kxa6 {[%clk 0:00:35.7]} 34. Rxg7 {[%clk 0:00:15]}
34... Nc3 {[%clk 0:00:30.5]} 35. Rg6 {[%clk 0:00:13.8]} 35... Nd5 {[%clk
0:00:30.7]} 36. Rxh6 {[%clk 0:00:13.8]} 36... Nxb4 {[%clk 0:00:30.7]} 37. Rxf6
{[%clk 0:00:13.6]} 37... Kb6 {[%clk 0:00:29.7]} 38. h4 {[%clk 0:00:13.7]} 38...
Nxc2 {[%clk 0:00:29.7]} 39. h5 {[%clk 0:00:13.5]} 39... b4 {[%clk 0:00:28.7]}
40. h6 {[%clk 0:00:13.6]} 40... b3 {[%clk 0:00:28.8]} 41. h7 {[%clk 0:00:13.7]}
41... b2 {[%clk 0:00:21.6]} 42. Rf1 {[%clk 0:00:12.7]} 42... Na3 {[%clk
0:00:11.8]} 43. h8=Q {[%clk 0:00:11.5]} 1-0